[Event "Centenario Panaderia Pulido 2023"]
[Site "San Mateo Gran Canaria"]
[Date "2023.12.09"]
[Round "9.3"]
[White "Calzetta Ruiz, Monica"]
[Black "Strikovic, Aleksa"]
[Result "0-1"]
[ECO "C41"]
[WhiteElo "2239"]
[BlackElo "2455"]
[Annotator "RC"]
[PlyCount "71"]
[EventDate "2023.12.04"]
[EventType "swiss"]
[EventCountry "ESP"]
[SourceTitle "playchess.com"]
[Source "ChessBase"]
[SourceQuality "1"]
[TimeControl "5400+30"]

1. e4 {[%emt 0:00:11]} d6 {[%emt 0:00:35]} 2. d4 {[%emt 0:00:10]} Nf6 {[%emt 0:00:07]} 3. Nc3 {[%emt 0:00:09]} e5 {[%emt 0:00:06]} 4. Nf3 {[%emt 0:00:13]} Nbd7 {[%emt 0:00:07]} 5. Bc4 {[%emt 0:00:37]} Be7 {[%emt 0:00:06]} 6. O-O {[%emt 0:00:15]} O-O {[%emt 0:00:06]} 7. h3 {[%emt 0:00:51]} Nb6 {[%emt 0:00:59]} 8. Bd3 {[%emt 0:00:35]} Nfd7 {[%emt 0:12:02]} 9. Re1 {[%emt 0:01:33]} c6 {[%emt 0:00:12]} 10. a4 {[%emt 0:04:47]} a5 {[%emt 0:09:00]} 11. Bf1 {[%emt 0:13:07]} Re8 {[%emt 0:01:48]} 12. Be3 {[%emt 0:10:34]} Bf8 {[%emt 0:04:37]} 13. Qd2 {[%emt 0:05:26]} Qc7 {[%emt 0:11:27]} 14. Rad1 {[%emt 0:02:26]} h6 {[%emt 0:08:36]} 15. Nh4 {[%emt 0:57:06]} Nf6 {[%emt 0:48:12]} 16. f4 {[%emt 0:00:30]} exf4 {[%emt 0:00:00]} 17. Bxf4 {[%emt 0:00:30]} g5 {[%emt 0:01:00]} 18. Bxg5 {[%emt 0:00:00]} hxg5 {[%emt 0:00:00]} 19. Qxg5+ {[%emt 0:01:00]} Bg7 {[%emt 0:00:00]} 20. Rd3 Nh7 {[%emt 0:01:30]} 21. Qh5 {[%emt 0:01:00]} Nd7 {[%emt 0:00:30]} 22. Rg3 {[%emt 0:00:30]} Ndf6 {[%emt 0:00:30]} 23. Qh6 {[%emt 0:00:30]} Ng4 {[%emt 0:00:30]} 24. Qd2 {[%emt 0:00:30]} Qb6 {[%emt 0:00:00]} 25. Nf3 Ne5 {[%emt 0:01:00]} 26. Nxe5 {[%emt 0:00:00]} Rxe5 {[%emt 0:00:30]} 27. Kh1 {[%emt 0:01:30]} Rh5 {[%emt 0:00:30]} 28. Be2 {[%emt 0:00:30]} Rh4 {[%emt 0:00:30]} 29. Bc4 {[%emt 0:00:30]} Be6 {[%emt 0:00:30]} 30. d5 {[%emt 0:00:30]} cxd5 {[%emt 0:00:30]} 31. Nxd5 {[%emt 0:00:30]} Qd8 {[%emt 0:00:00]} 32. Rf1 {[%emt 0:00:00]} Qb6 {[%emt 0:01:00]} 33. Qe3 {[%emt 0:01:00]} Qd8 34. Qd2 {[%emt 0:00:30]} Ng5 {[%emt 0:01:00]} 35. Re1 {[%emt 0:00:30]} Nh7 {[%emt 0:00:30]} 36. Rf1 {[%emt 0:00:30]} 0-1

[Event "Centenario Panaderia Pulido 2023"]
[Site "San Mateo Gran Canaria"]
[Date "2023.12.09"]
[Round "9.4"]
[White "Kurajica, Bojan"]
[Black "Estremera Panos, Sergio"]
[Result "1-0"]
[ECO "D27"]
[WhiteElo "2446"]
[BlackElo "2232"]
[Annotator "RC"]
[PlyCount "70"]
[EventDate "2023.12.04"]
[EventType "swiss"]
[EventCountry "ESP"]
[SourceTitle "playchess.com"]
[Source "ChessBase"]
[SourceQuality "1"]
[TimeControl "5400+30"]

1. Nf3 {[%emt 0:02:09]} d5 {[%emt 0:01:30]} 2. d4 {[%emt 0:00:06]} Nf6 {[%emt 0:00:33]} 3. c4 {[%emt 0:00:05]} e6 {[%emt 0:00:15]} 4. e3 {[%emt 0:00:08]} c5 {[%emt 0:00:30]} 5. Nc3 {[%emt 0:01:05]} dxc4 {[%emt 0:00:57]} 6. Bxc4 {[%emt 0:00:11]} a6 {[%emt 0:00:05]} 7. O-O {[%emt 0:02:09]} b5 {[%emt 0:00:24]} 8. Bd3 {[%emt 0:01:35]} Bb7 {[%emt 0:00:17]} 9. a4 {[%emt 0:01:59]} b4 {[%emt 0:02:22]} 10. Nb1 {[%emt 0:00:54]} Nc6 {[%emt 0:02:42]} 11. b3 {[%emt 0:00:43]} cxd4 {[%emt 0:01:52]} 12. exd4 {[%emt 0:00:06]} Be7 {[%emt 0:00:40]} 13. Bb2 {[%emt 0:00:58]} O-O {[%emt 0:08:07]} 14. Nbd2 {[%emt 0:01:04]} e5 {[%emt 0:08:34]} 15. dxe5 {[%emt 0:03:24]} Qxd3 {[%emt 0:01:12]} 16. exf6 {[%emt 0:00:06]} Bxf6 {[%emt 0:00:08]} 17. Bxf6 {[%emt 0:00:14]} gxf6 {[%emt 0:00:01]} 18. Re1 {[%emt 0:05:56]} Nd4 {[%emt 0:11:47]} 19. Nxd4 {[%emt 0:13:00]} Qxd4 {[%emt 0:00:11]} 20. Nc4 {[%emt 0:00:59]} Rad8 {[%emt 0:04:58]} 21. Qe2 {[%emt 0:18:03]} Bd5 {[%emt 0:11:25]} 22. Rac1 {[%emt 0:03:40]} Be6 {[%emt 0:01:49]} 23. Qf3 {[%emt 0:00:16]} Bg4 {[%emt 0:09:37]} 24. Qb7 {[%emt 0:02:42]} Rfe8 {[%emt 0:13:24]} 25. Qxb4 {[%emt 0:02:08]} Be6 {[%emt 0:08:49]} 26. h3 {[%emt 0:02:23]} Rb8 {[%emt 0:01:21]} 27. Qa3 {[%emt 0:07:58]} Red8 {[%emt 0:05:26]} 28. Re3 {[%emt 0:01:04]} Rdc8 {[%emt 0:02:36]} 29. Qe7 {[%emt 0:06:14]} Re8 {[%emt 0:00:55]} 30. Qc7 {[%emt 0:00:17]} Rec8 {[%emt 0:00:52]} 31. Qg3+ {[%emt 0:00:34]} Kh8 {[%emt 0:00:34]} 32. Rd3 {[%emt 0:00:39]} Qc5 {[%emt 0:00:31]} 33. Rcc3 {[%emt 0:00:50]} Rg8 {[%emt 0:01:09]} 34. Qf3 {[%emt 0:02:33]} Qg5 {[%emt 0:01:11]} 35. Nd6 {[%emt 0:00:40]} Rbd8 {[%emt 0:01:16]} 1-0

[Event "Centenario Panaderia Pulido 2023"]
[Site "San Mateo Gran Canaria"]
[Date "2023.12.09"]
[Round "9.5"]
[White "Oudeh Mishmesh, Omar"]
[Black "Moreno Diepa, Diego"]
[Result "1-0"]
[ECO "A28"]
[WhiteElo "2247"]
[BlackElo "2138"]
[Annotator "ChessBase"]
[PlyCount "131"]
[EventDate "2023.12.04"]
[EventType "swiss"]
[EventCountry "ESP"]
[SourceTitle "playchess.com"]
[Source "ChessBase"]
[SourceQuality "1"]
[TimeControl "5400+30"]

1. c4 {[%emt 1:31:00]} e5 {[%emt 0:01:00]} 2. Nc3 {[%emt 0:00:00]} Nf6 {[%emt 0:00:40]} 3. Nf3 {[%emt 0:00:00]} Nc6 {[%emt 0:00:07]} 4. e3 {[%emt 0:00:00]} Be7 {[%emt 0:09:34]} 5. Qb3 {[%emt 0:00:00]} O-O {[%emt 0:01:03]} 6. d3 {[%emt 0:00:00]} d6 {[%emt 0:05:39]} 7. Bd2 {[%emt 0:00:00]} Nb8 {[%emt 0:01:41]} 8. Be2 {[%emt 0:00:00]} c6 {[%emt 0:00:04]} 9. O-O {[%emt 0:00:00]} Nbd7 {[%emt 0:00:55]} 10. d4 {[%emt 0:00:00]} Re8 {[%emt 0:04:27]} 11. Qc2 {[%emt 0:00:00]} Bf8 {[%emt 0:05:06]} 12. Bd3 {[%emt 0:00:00]} g6 {[%emt 0:15:21]} 13. d5 {[%emt 0:00:00]} Nc5 {[%emt 0:07:14]} 14. e4 {[%emt 0:00:00]} cxd5 {[%emt 0:01:50]} 15. cxd5 {[%emt 0:00:00]} Bd7 {[%emt 0:01:45]} 16. b4 {[%emt 0:00:00]} Nxd3 {[%emt 0:00:21]} 17. Qxd3 {[%emt 0:00:00]} Nh5 {[%emt 0:01:59]} 18. Rac1 {[%emt 0:00:00]} Rc8 {[%emt 0:07:20]} 19. Rfe1 {[%emt 0:00:00]} Nf4 {[%emt 0:06:26]} 20. Bxf4 {[%emt 0:00:00]} exf4 {[%emt 0:00:06]} 21. Nb1 {[%emt 0:00:00]} Bg7 {[%emt 0:03:32]} 22. Nbd2 {[%emt 0:00:00]} Qb6 {[%emt 0:01:24]} 23. Qb3 {[%emt 0:00:00]} Qa6 {[%emt 0:02:28]} 24. h3 {[%emt 0:00:58]} Ba4 {[%emt 0:22:28]} 25. Qb1 {[%emt 0:02:12]} Bc3 {[%emt 0:00:36]} 26. e5 {[%emt 0:01:52]} dxe5 {[%emt 0:01:22]} 27. Rxc3 {[%emt 0:01:31]} Rxc3 {[%emt 0:01:09]} 28. Ne4 {[%emt 0:00:16]} Bc2 {[%emt 0:02:58]} 29. Qa1 {[%emt 0:01:51]} Bxe4 {[%emt 0:00:26]} 30. Qxc3 {[%emt 0:00:11]} Bxf3 {[%emt 0:00:05]} 31. gxf3 {[%emt 0:00:20]} Qf6 {[%emt 0:01:43]} 32. Rd1 {[%emt 0:01:56]} Rd8 {[%emt 0:01:56]} 33. Kh2 {[%emt 0:00:22]} Qd6 {[%emt 0:00:40]} 34. Kg2 {[%emt 0:01:11]} Kf8 {[%emt 0:01:24]} 35. Qc4 {[%emt 0:01:35]} Ke7 {[%emt 0:00:58]} 36. Qb5 {[%emt 0:00:24]} Rd7 {[%emt 0:00:23]} 37. a3 {[%emt 0:01:07]} Rc7 {[%emt 0:03:14]} 38. Rd2 {[%emt 0:00:28]} Rd7 {[%emt 0:01:37]} 39. Qc4 {[%emt 0:01:20]} Rc7 {[%emt 0:00:13]} 40. Qe4 {[%emt 0:00:26]} Rd7 {[%emt 0:01:40]} 41. Qd3 {[%emt 0:00:13]} f6 {[%emt 0:01:00]} 42. Qe4 {[%emt 0:00:44]} Rc7 {[%emt 0:00:37]} 43. Qd3 {[%emt 0:00:41]} Rd7 {[%emt 0:01:34]} 44. Qb3 {[%emt 0:00:34]} a6 {[%emt 0:01:33]} 45. b5 {[%emt 0:00:44]} axb5 {[%emt 0:02:18]} 46. Qxb5 {[%emt 0:00:16]} Qa6 {[%emt 0:01:49]} 47. Qc5+ {[%emt 0:00:23]} Qd6 {[%emt 0:00:13]} 48. Qc8 {[%emt 0:00:33]} Rd8 {[%emt 0:01:11]} 49. Qxb7+ {[%emt 0:00:04]} Rd7 {[%emt 0:00:01]} 50. Qc8 {[%emt 0:00:44]} Rd8 {[%emt 0:00:23]} 51. Qc3 {[%emt 0:00:07]} Ra8 {[%emt 0:01:09]} 52. Qb3 {[%emt 0:00:31]} Ra7 {[%emt 0:00:40]} 53. a4 {[%emt 0:00:15]} f5 {[%emt 0:00:19]} 54. Qc4 {[%emt 0:00:28]} Rc7 {[%emt 0:00:45]} 55. Qb5 {[%emt 0:00:43]} Kf7 {[%emt 0:00:10]} 56. Qd3 {[%emt 0:02:30]} Ra7 {[%emt 0:00:41]} 57. Rc2 {[%emt 0:00:37]} Rxa4 {[%emt 0:00:44]} 58. Qb5 {[%emt 0:00:44]} Ra7 {[%emt 0:00:25]} 59. Rc6 {[%emt 0:00:12]} Qd7 {[%emt 0:00:06]} 60. Qc4 {[%emt 0:00:24]} Ke7 {[%emt 0:00:44]} 61. d6+ {[%emt 0:00:09]} Kf6 {[%emt 0:00:08]} 62. Qc5 {[%emt 0:00:47]} Rb7 {[%emt 0:00:53]} 63. Rc7 {[%emt 0:00:16]} Qb5 {[%emt 0:00:23]} 64. d7 {[%emt 0:00:13]} Qxc5 {[%emt 0:00:33]} 65. d8=Q+ {[%emt 0:00:05]} Qe7 {[%emt 0:00:04]} 66. Qxe7# {[%emt 0:00:05]} 1-0

[Event "Centenario Panaderia Pulido 2023"]
[Site "San Mateo Gran Canaria"]
[Date "2023.12.09"]
[Round "9.6"]
[White "Hernandez Leon, Sergio"]
[Black "Gonzalez Martinez, Miguel Angel"]
[Result "1-0"]
[ECO "C41"]
[WhiteElo "2167"]
[BlackElo "2158"]
[Annotator "ChessBase"]
[PlyCount "34"]
[EventDate "2023.12.04"]
[EventType "swiss"]
[EventCountry "ESP"]
[SourceTitle "playchess.com"]
[Source "ChessBase"]
[SourceQuality "1"]
[TimeControl "5400+30"]

1. e4 {[%emt 0:00:03]} e5 {[%emt 0:00:11]} 2. Nf3 {[%emt 0:00:32]} d6 {[%emt 0:00:06]} 3. d4 {[%emt 0:00:22]} Nd7 {[%emt 0:00:07]} 4. Bc4 {[%emt 0:01:57]} c6 {[%emt 0:00:04]} 5. O-O {[%emt 0:00:24]} Be7 {[%emt 0:00:09]} 6. dxe5 {[%emt 0:02:15]} dxe5 {[%emt 0:00:01]} 7. Ng5 {[%emt 0:00:37]} Bxg5 {[%emt 0:00:01]} 8. Qh5 {[%emt 0:00:07]} Qe7 {[%emt 0:00:09]} 9. Qxg5 {[%emt 0:00:49]} Qxg5 {[%emt 0:04:45]} 10. Bd2 Qf4 11. Bxf4 {[%emt 0:00:33]} Ngf6 {[%emt 0:00:47]} 12. Bg5 {[%emt 0:01:18]} b5 {[%emt 0:00:50]} 13. f3 {[%emt 0:03:31]} Nc5 {[%emt 0:00:52]} 14. Be2 {[%emt 0:02:09]} Nfd7 {[%emt 0:05:38]} 15. Be3 {[%emt 0:04:37]} Ke7 {[%emt 0:08:48]} 16. Rd1 {[%emt 0:14:40]} a5 {[%emt 0:04:22]} 17. Nc3 {[%emt 0:02:24]} Na6 {[%emt 0:21:54]} 1-0

[Event "Centenario Panaderia Pulido 2023"]
[Site "San Mateo Gran Canaria"]
[Date "2023.12.09"]
[Round "9.7"]
[White "Camino Carrio, Nicanor"]
[Black "Hernando Rodrigo, Jose Maria"]
[Result "0-1"]
[ECO "B07"]
[WhiteElo "1948"]
[BlackElo "2278"]
[Annotator "ChessBase"]
[PlyCount "58"]
[EventDate "2023.12.04"]
[EventType "swiss"]
[EventCountry "ESP"]
[SourceTitle "playchess.com"]
[Source "ChessBase"]
[SourceQuality "1"]
[TimeControl "5400+30"]

1. e4 {[%emt 0:01:09]} d6 {[%emt 0:01:53]} 2. d4 {[%emt 0:04:42]} Nd7 {[%emt 0:00:14]} 3. Nf3 {[%emt 0:01:05]} a6 {[%emt 0:01:12]} 4. Bc4 {[%emt 0:01:31]} e6 {[%emt 0:00:17]} 5. O-O {[%emt 0:00:43]} h6 {[%emt 0:03:29]} 6. Nfd2 {[%emt 0:02:38]} b5 {[%emt 0:03:44]} 7. Bb3 {[%emt 0:00:06]} c5 {[%emt 0:00:56]} 8. c4 {[%emt 0:01:11]} cxd4 {[%emt 0:01:14]} 9. cxb5 {[%emt 0:00:09]} Ngf6 {[%emt 0:02:23]} 10. f4 {[%emt 0:01:55]} Be7 {[%emt 0:06:04]} 11. Nf3 {[%emt 0:00:07]} Nxe4 {[%emt 0:07:03]} 12. Nxd4 {[%emt 0:01:20]} O-O {[%emt 0:05:44]} 13. Kh1 {[%emt 0:01:07]} axb5 {[%emt 0:04:21]} 14. Nc6 {[%emt 0:01:40]} Qe8 {[%emt 0:00:07]} 15. Nxe7+ {[%emt 0:00:42]} Qxe7 {[%emt 0:00:09]} 16. Nc3 {[%emt 0:00:59]} Ndc5 {[%emt 0:06:29]} 17. Bc2 {[%emt 0:01:01]} Nxc3 {[%emt 0:01:41]} 18. bxc3 {[%emt 0:00:10]} f5 {[%emt 0:02:08]} 19. Qd4 {[%emt 0:02:15]} Bb7 {[%emt 0:01:22]} 20. Be3 {[%emt 0:00:58]} Rf6 {[%emt 0:02:16]} 21. Bd1 {[%emt 0:05:30]} Rg6 {[%emt 0:00:26]} 22. Bf3 {[%emt 0:00:24]} Bxf3 {[%emt 0:00:10]} 23. gxf3 {[%emt 0:00:18]} Qb7 {[%emt 0:13:00]} 24. Rad1 {[%emt 0:23:04]} Rxa2 {[%emt 0:03:05]} 25. Qxd6 {[%emt 0:00:06]} Ne4 {[%emt 0:06:37]} 26. Qd3 {[%emt 0:48:40]} Rgg2 {[%emt 0:27:26]} 27. Bg1 {[%emt 0:00:30]} Qf7 {[%emt 0:00:30]} 28. fxe4 {[%emt 0:00:30]} Qh5 {[%emt 0:00:30]} 29. Qd8+ {[%emt 0:00:30]} Kh7 0-1

[Event "Centenario Panaderia Pulido 2023"]
[Site "San Mateo Gran Canaria"]
[Date "2023.12.09"]
[Round "9.8"]
[White "Marrero Cardenes, Agustin"]
[Black "Garcia Rodriguez, Adriana"]
[Result "1-0"]
[ECO "D55"]
[WhiteElo "2106"]
[BlackElo "1659"]
[Annotator "NA"]
[PlyCount "63"]
[EventDate "2023.12.04"]
[EventType "swiss"]
[EventCountry "ESP"]
[SourceTitle "playchess.com"]
[Source "ChessBase"]
[SourceQuality "1"]
[TimeControl "5400+30"]

1. d4 {[%emt 0:00:04]} d5 {[%emt 0:00:05]} 2. Nf3 {[%emt 0:00:05]} Nf6 {[%emt 0:00:10]} 3. c4 {[%emt 0:00:10]} e6 {[%emt 0:00:17]} 4. Bg5 {[%emt 0:01:18]} Be7 {[%emt 0:01:16]} 5. e3 {[%emt 0:00:51]} O-O {[%emt 0:00:20]} 6. Nc3 {[%emt 0:01:19]} b6 {[%emt 0:00:45]} 7. cxd5 {[%emt 0:01:27]} exd5 {[%emt 0:00:53]} 8. Bd3 {[%emt 0:00:43]} Bb7 {[%emt 0:00:54]} 9. Qc2 {[%emt 0:01:38]} Nbd7 {[%emt 0:01:08]} 10. O-O {[%emt 0:00:20]} h6 {[%emt 0:00:41]} 11. Bxf6 {[%emt 0:01:40]} Nxf6 {[%emt 0:00:31]} 12. Ne5 {[%emt 0:00:34]} Nd7 {[%emt 0:07:16]} 13. f4 {[%emt 0:01:17]} Nxe5 {[%emt 0:03:05]} 14. fxe5 {[%emt 0:01:54]} c5 {[%emt 0:04:26]} 15. Qf2 {[%emt 0:01:22]} Bc8 {[%emt 0:01:32]} 16. Qf3 {[%emt 0:01:10]} Be6 {[%emt 0:00:41]} 17. Ne2 {[%emt 0:02:05]} Bg5 {[%emt 0:12:01]} 18. Rae1 {[%emt 0:25:15]} Bh4 {[%emt 0:05:16]} 19. g3 {[%emt 0:02:48]} Bg5 {[%emt 0:01:43]} 20. h4 {[%emt 0:00:54]} Be7 {[%emt 0:00:05]} 21. Nf4 {[%emt 0:01:41]} Qd7 {[%emt 0:00:28]} 22. Rf2 {[%emt 0:02:24]} Rad8 {[%emt 0:03:18]} 23. Nxe6 {[%emt 0:04:39]} Qxe6 {[%emt 0:01:05]} 24. Qh5 {[%emt 0:01:02]} c4 {[%emt 0:14:19]} 25. Bb1 {[%emt 0:01:05]} b5 {[%emt 0:00:48]} 26. Ref1 {[%emt 0:02:46]} b4 {[%emt 0:02:25]} 27. Rf4 {[%emt 0:03:36]} a5 {[%emt 0:02:31]} 28. Rg4 {[%emt 0:10:01]} a4 {[%emt 0:01:10]} 29. Rf6 {[%emt 0:02:32]} Bxf6 {[%emt 0:03:45]} 30. Qxh6 {[%emt 0:00:24]} g6 {[%emt 0:00:55]} 31. Bxg6 {[%emt 0:00:22]} fxg6 {[%emt 0:00:17]} 32. Qxg6+ {[%emt 0:29:04]} 1-0

[Event "Centenario Panaderia Pulido 2023"]
[Site "San Mateo Gran Canaria"]
[Date "2023.12.09"]
[Round "9.9"]
[White "Quiceno Ramirez, Edwin Alejandro"]
[Black "Medina Martin, Alberto"]
[Result "0-1"]
[ECO "E11"]
[WhiteElo "1777"]
[BlackElo "2105"]
[Annotator "NA"]
[PlyCount "142"]
[EventDate "2023.12.04"]
[EventType "swiss"]
[EventCountry "ESP"]
[SourceTitle "playchess.com"]
[Source "ChessBase"]
[SourceQuality "1"]
[TimeControl "5400+30"]

1. d4 {[%emt 0:02:14]} Nf6 {[%emt 0:00:12]} 2. c4 {[%emt 0:03:04]} e6 {[%emt 0:00:09]} 3. Nf3 {[%emt 0:00:05]} Bb4+ {[%emt 0:00:06]} 4. Bd2 {[%emt 0:00:02]} Qe7 {[%emt 0:00:09]} 5. g3 {[%emt 0:00:05]} O-O {[%emt 0:00:07]} 6. Bg2 {[%emt 0:00:09]} Bxd2+ {[%emt 0:00:10]} 7. Nbxd2 {[%emt 0:00:08]} d6 {[%emt 0:00:17]} 8. O-O {[%emt 0:01:04]} e5 {[%emt 0:00:08]} 9. e3 {[%emt 0:00:41]} c6 {[%emt 0:07:12]} 10. dxe5 {[%emt 0:03:02]} dxe5 {[%emt 0:00:08]} 11. Qc2 {[%emt 0:00:03]} a5 {[%emt 0:01:13]} 12. a3 {[%emt 0:06:08]} a4 {[%emt 0:01:38]} 13. Rac1 {[%emt 0:09:55]} Nbd7 {[%emt 0:01:33]} 14. c5 {[%emt 0:11:27]} Ra5 {[%emt 0:00:46]} 15. Nc4 {[%emt 0:00:03]} Rxc5 {[%emt 0:02:47]} 16. Qxa4 {[%emt 0:00:05]} b5 {[%emt 0:00:28]} 17. Qb4 {[%emt 0:01:19]} Nd5 {[%emt 0:00:13]} 18. Qb3 {[%emt 0:02:33]} Rxc4 {[%emt 0:00:14]} 19. Rxc4 {[%emt 0:00:04]} bxc4 {[%emt 0:00:07]} 20. Qxc4 {[%emt 0:00:07]} Bb7 {[%emt 0:00:18]} 21. Rc1 {[%emt 0:00:32]} Kh8 {[%emt 0:01:08]} 22. b4 {[%emt 0:00:20]} f6 {[%emt 0:00:51]} 23. Nh4 {[%emt 0:00:29]} g6 {[%emt 0:00:39]} 24. b5 {[%emt 0:00:11]} cxb5 {[%emt 0:00:43]} 25. Qxb5 {[%emt 0:00:07]} Qxa3 {[%emt 0:10:35]} 26. Rb1 {[%emt 0:16:24]} Nc3 {[%emt 0:01:06]} 27. Qxb7 {[%emt 0:00:02]} Nxb1 {[%emt 0:00:20]} 28. Qxd7 {[%emt 0:00:07]} Qc1+ {[%emt 0:00:42]} 29. Bf1 {[%emt 0:00:12]} Nd2 {[%emt 0:00:11]} 30. Qb5 {[%emt 0:00:02]} Rd8 {[%emt 0:07:01]} 31. Qa6 {[%emt 0:04:34]} Kg7 {[%emt 0:02:36]} 32. Kg2 {[%emt 0:00:53]} Qxf1+ {[%emt 0:00:49]} 33. Qxf1 {[%emt 0:00:02]} Nxf1 {[%emt 0:00:07]} 34. Kxf1 {[%emt 0:00:06]} Rd1+ {[%emt 0:00:07]} 35. Kg2 {[%emt 0:00:06]} e4 {[%emt 0:00:39]} 36. g4 {[%emt 0:00:06]} Kf7 {[%emt 0:00:23]} 37. f3 {[%emt 0:04:16]} Rd2+ {[%emt 0:00:41]} 38. Kg3 {[%emt 0:00:03]} Re2 {[%emt 0:01:59]} 39. Ng2 {[%emt 0:00:11]} exf3 {[%emt 0:00:05]} 40. Kxf3 {[%emt 0:00:02]} Ra2 {[%emt 0:00:23]} 41. h4 {[%emt 0:00:22]} Ke6 {[%emt 0:00:32]} 42. Nf4+ {[%emt 0:00:32]} Ke5 {[%emt 0:00:24]} 43. Nd3+ {[%emt 0:08:19]} Kd6 {[%emt 0:00:32]} 44. Nf2 {[%emt 0:04:49]} Kd5 {[%emt 0:01:23]} 45. Nd3 {[%emt 0:04:09]} Rh2 {[%emt 0:02:24]} 46. h5 {[%emt 0:00:55]} g5 {[%emt 0:00:21]} 47. Nf2 {[%emt 0:00:36]} Ke5 {[%emt 0:00:45]} 48. Nd3+ {[%emt 0:00:01]} Ke6 {[%emt 0:00:50]} 49. Ke4 {[%emt 0:02:43]} Ra2 {[%emt 0:03:27]} 50. Nc5+ {[%emt 0:04:23]} Ke7 {[%emt 0:03:21]} 51. Nb3 {[%emt 0:00:18]} Rg2 {[%emt 0:01:10]} 52. Kf3 {[%emt 0:00:48]} Rg1 {[%emt 0:00:14]} 53. Nd4 {[%emt 0:00:02]} Kd6 {[%emt 0:01:25]} 54. Ne2 {[%emt 0:00:54]} Re1 {[%emt 0:01:49]} 55. Nd4 {[%emt 0:03:10]} Ke5 {[%emt 0:02:14]} 56. Nc6+ {[%emt 0:02:22]} Kd5 {[%emt 0:02:34]} 57. Ne7+ {[%emt 0:00:28]} Ke6 {[%emt 0:00:28]} 58. Nf5 {[%emt 0:00:12]} Ke5 {[%emt 0:08:42]} 59. Nd4 {[%emt 0:00:38]} Rc1 {[%emt 0:03:20]} 60. Ne2 {[%emt 0:00:19]} Rc4 {[%emt 0:00:32]} 61. Ng3 {[%emt 0:00:19]} Ra4 {[%emt 0:02:18]} 62. Nf5 {[%emt 0:01:20]} Ra1 {[%emt 0:00:46]} 63. Ng3 {[%emt 0:00:13]} Rd1 {[%emt 0:00:54]} 64. Kf2 {[%emt 0:02:35]} Rd2+ {[%emt 0:00:59]} 65. Kf3 {[%emt 0:00:05]} Rh2 {[%emt 0:02:40]} 66. Nf1 {[%emt 0:00:27]} Rh1 {[%emt 0:01:43]} 67. Ng3 {[%emt 0:01:43]} Rh4 {[%emt 0:01:12]} 68. Nf5 {[%emt 0:00:25]} Rxh5 {[%emt 0:07:27]} 69. gxh5 {[%emt 0:00:37]} Kxf5 {[%emt 0:00:01]} 70. e4+ {[%emt 0:00:35]} Ke5 {[%emt 0:00:11]} 71. Kg3 {[%emt 0:10:38]} Ke6 {[%emt 0:22:22]} 0-1

[Event "Centenario Panaderia Pulido 2023"]
[Site "San Mateo Gran Canaria"]
[Date "2023.12.09"]
[Round "9.10"]
[White "Garbezza, Davide"]
[Black "Bergero, Simone"]
[Result "1/2-1/2"]
[ECO "C10"]
[WhiteElo "1860"]
[BlackElo "2010"]
[Annotator "NA RC"]
[PlyCount "22"]
[EventDate "2023.12.04"]
[EventType "swiss"]
[EventCountry "ESP"]
[SourceTitle "playchess.com"]
[Source "ChessBase"]
[SourceQuality "1"]
[TimeControl "5400+30"]

1. e4 {[%emt 0:13:38]} e6 {[%emt 0:00:02]} 2. d4 {[%emt 0:00:06]} d5 {[%emt 0:00:03]} 3. Nc3 {[%emt 0:00:04]} c5 {[%emt 0:00:03]} 4. exd5 {[%emt 0:00:13]} cxd4 {[%emt 0:00:25]} 5. Qxd4 {[%emt 0:00:08]} Nf6 {[%emt 0:00:08]} 6. Bb5+ {[%emt 0:00:14]} Bd7 {[%emt 0:00:04]} 7. Bxd7+ {[%emt 0:00:05]} Qxd7 {[%emt 0:00:02]} 8. Nf3 {[%emt 0:00:12]} Nxd5 {[%emt 0:00:10]} 9. O-O {[%emt 0:00:18]} Nxc3 {[%emt 0:00:06]} 10. Qxd7+ {[%emt 0:00:05]} Nxd7 {[%emt 0:00:05]} 11. bxc3 {[%emt 0:00:03]} Bc5 {[%emt 0:01:08]} 1/2-1/2

[Event "Centenario Panaderia Pulido 2023"]
[Site "San Mateo Gran Canaria"]
[Date "2023.12.09"]
[Round "9.11"]
[White "Uzcategui Rodriguez, Alejandro"]
[Black "Hernandez Leon, Alberto"]
[Result "1/2-1/2"]
[ECO "D05"]
[WhiteElo "2235"]
[BlackElo "2209"]
[Annotator "RC"]
[PlyCount "20"]
[EventDate "2023.12.04"]
[EventType "swiss"]
[EventCountry "ESP"]
[SourceTitle "playchess.com"]
[Source "ChessBase"]
[SourceQuality "1"]
[TimeControl "5400+30"]

1. d4 {[%emt 0:00:04]} c5 {[%emt 0:00:05]} 2. e3 {[%emt 0:00:05]} Nf6 {[%emt 0:00:04]} 3. Nf3 {[%emt 0:00:02]} e6 {[%emt 0:00:05]} 4. c3 {[%emt 0:00:04]} Nc6 {[%emt 0:00:06]} 5. Nbd2 {[%emt 0:00:03]} d5 {[%emt 0:00:06]} 6. Bd3 {[%emt 0:00:03]} cxd4 {[%emt 0:00:06]} 7. exd4 {[%emt 0:00:03]} Bd6 {[%emt 0:00:06]} 8. O-O {[%emt 0:00:04]} O-O {[%emt 0:00:04]} 9. Re1 {[%emt 0:00:03]} b6 {[%emt 0:00:07]} 10. Nf1 {[%emt 0:00:03]} Bb7 {[%emt 0:00:04]} 1/2-1/2